[Event "Titled Tuesday Blitz January 31 Early 2023"]
[White "Marin Ramirez, Gerardo"]
[Black "Machidon, Cristi"]
[WhiteFideId "3901068"]
[BlackFideId "13904590"]
[WhiteElo "2127"]
[BlackElo "2301"]
[Result "0-1"]
[Round "01"]
[TimeControl "180+2"]
[Date "2023.01.31"]
[WhiteClock "0:00:01"]
[BlackClock "0:00:14"]

1. d4 {[%clk 0:02:56]}  Nf6 {[%clk 0:02:58]} 2. Nf3 {[%clk 0:02:52]}  d6 {[%clk 0:02:58]} 3. c4 {[%clk 0:02:51]}  Nbd7 {[%clk 0:02:58]} 4. g3 {[%clk 0:02:49]}  e5 {[%clk 0:02:58]} 5. Bg2 {[%clk 0:02:43]}  Be7 {[%clk 0:02:53]} 6. Nc3 {[%clk 0:02:38]}  O-O {[%clk 0:02:53]} 7. O-O {[%clk 0:02:38]}  c6 {[%clk 0:02:45]} 8. Qc2 {[%clk 0:02:28]}  Re8 {[%clk 0:02:45]} 9. Rd1 {[%clk 0:02:18]}  Qc7 {[%clk 0:02:44]} 10. b3 {[%clk 0:02:07]}  Bf8 {[%clk 0:02:37]} 11. Bb2 {[%clk 0:02:01]}  e4 {[%clk 0:02:28]} 12. Ne1 {[%clk 0:01:59]}  d5 {[%clk 0:02:24]} 13. cxd5 {[%clk 0:01:42]}  cxd5 {[%clk 0:02:25]} 14. Nxe4 {[%clk 0:01:35]}  Qxc2 {[%clk 0:02:21]} 15. Nxf6+ {[%clk 0:01:33]}  Nxf6 {[%clk 0:02:22]} 16. Nxc2 {[%clk 0:01:28]}  Rxe2 {[%clk 0:02:21]} 17. Rac1 {[%clk 0:01:26]}  Bf5 {[%clk 0:02:20]} 18. Ne3 {[%clk 0:01:22]}  Rxb2 {[%clk 0:02:10]} 19. Nxf5 {[%clk 0:01:21]}  Rxa2 {[%clk 0:02:10]} 20. Rc7 {[%clk 0:01:13]}  b5 {[%clk 0:02:09]} 21. Rb7 {[%clk 0:01:10]}  b4 {[%clk 0:02:03]} 22. Ne3 {[%clk 0:01:10]}  Rd8 {[%clk 0:01:43]} 23. Rc1 {[%clk 0:00:52]}  a5 {[%clk 0:01:12]} 24. Rcc7 {[%clk 0:00:50]}  Ra1+ {[%clk 0:01:11]} 25. Bf1 {[%clk 0:00:48]}  Ne4 {[%clk 0:01:06]} 26. Kg2 {[%clk 0:00:40]}  Nd2 {[%clk 0:00:54]} 27. Bd3 {[%clk 0:00:34]}  Nxb3 {[%clk 0:00:46]} 28. Nf5 {[%clk 0:00:33]}  g6 {[%clk 0:00:33]} 29. Rxf7 {[%clk 0:00:27]}  gxf5 {[%clk 0:00:32]} 30. Bxf5 {[%clk 0:00:26]}  Nxd4 {[%clk 0:00:24]} 31. Bxh7+ {[%clk 0:00:24]}  Kh8 {[%clk 0:00:24]} 32. Bg6 {[%clk 0:00:15]}  Re1 {[%clk 0:00:22]} 33. Rh7+ {[%clk 0:00:13]}  Kg8 {[%clk 0:00:22]} 34. Rh5 {[%clk 0:00:10]}  Re7 {[%clk 0:00:21]} 35. Rb6 {[%clk 0:00:03]}  Rg7 {[%clk 0:00:17]} 36. Bd3 {[%clk 0:00:01]}  b3 {[%clk 0:00:14]} 0-1


[Site "https://www.chess.com"]

[Event "Titled Tuesday Blitz January 31 Early 2023"]
[White "Aaditya Dhingra"]
[Black "Ruge, Edison"]
[WhiteFideId "25678191"]
[BlackFideId "4401000"]
[WhiteElo "2027"]
[BlackElo "2201"]
[Result "1-0"]
[Round "01"]
[TimeControl "180+2"]
[Date "2023.01.31"]
[WhiteClock "0:00:13"]
[BlackClock "0:00:17"]

1. Nf3 {[%clk 0:02:57]}  e6 {[%clk 0:02:59]} 2. e4 {[%clk 0:02:55]}  d5 {[%clk 0:02:59]} 3. d3 {[%clk 0:02:51]}  c6 {[%clk 0:02:58]} 4. Nbd2 {[%clk 0:02:50]}  f5 {[%clk 0:02:58]} 5. exf5 {[%clk 0:02:48]}  exf5 {[%clk 0:02:57]} 6. d4 {[%clk 0:02:48]}  Nf6 {[%clk 0:02:55]} 7. Bd3 {[%clk 0:02:49]}  Bd6 {[%clk 0:02:54]} 8. O-O {[%clk 0:02:49]}  O-O {[%clk 0:02:54]} 9. Ne5 {[%clk 0:02:49]}  g6 {[%clk 0:02:49]} 10. c4 {[%clk 0:02:45]}  Be6 {[%clk 0:02:45]} 11. Re1 {[%clk 0:02:41]}  Qc8 {[%clk 0:02:43]} 12. Ndf3 {[%clk 0:02:29]}  Ne4 {[%clk 0:02:32]} 13. Ng5 {[%clk 0:02:28]}  Nxg5 {[%clk 0:02:31]} 14. Bxg5 {[%clk 0:02:27]}  Bxe5 {[%clk 0:02:30]} 15. Rxe5 {[%clk 0:02:24]}  dxc4 {[%clk 0:02:27]} 16. Be2 {[%clk 0:01:42]}  Bd5 {[%clk 0:02:19]} 17. Bf3 {[%clk 0:01:41]}  Bxf3 {[%clk 0:02:06]} 18. Qxf3 {[%clk 0:01:40]}  Nd7 {[%clk 0:02:05]} 19. Re7 {[%clk 0:01:39]}  Rf7 {[%clk 0:02:05]} 20. Rae1 {[%clk 0:01:35]}  Qf8 {[%clk 0:02:05]} 21. R7e6 {[%clk 0:01:30]}  Nb6 {[%clk 0:01:59]} 22. h4 {[%clk 0:01:22]}  Nd5 {[%clk 0:01:57]} 23. h5 {[%clk 0:01:22]}  Qg7 {[%clk 0:01:48]} 24. hxg6 {[%clk 0:00:55]}  hxg6 {[%clk 0:01:46]} 25. Bf4 {[%clk 0:00:50]}  Rff8 {[%clk 0:01:18]} 26. Qg3 {[%clk 0:00:38]}  Kf7 {[%clk 0:01:13]} 27. Bg5 {[%clk 0:00:23]}  Qxd4 {[%clk 0:01:01]} 28. Qd6 {[%clk 0:00:19]}  Qg7 {[%clk 0:00:37]} 29. Re7+ {[%clk 0:00:18]}  Nxe7 {[%clk 0:00:36]} 30. Rxe7+ {[%clk 0:00:17]}  Kg8 {[%clk 0:00:36]} 31. Rxg7+ {[%clk 0:00:17]}  Kxg7 {[%clk 0:00:36]} 32. Qe5+ {[%clk 0:00:17]}  Kg8 {[%clk 0:00:35]} 33. Qe6+ {[%clk 0:00:17]}  Kg7 {[%clk 0:00:33]} 34. Qxc4 {[%clk 0:00:17]}  Rae8 {[%clk 0:00:31]} 35. g3 {[%clk 0:00:17]}  Rf7 {[%clk 0:00:31]} 36. Be3 {[%clk 0:00:16]}  a6 {[%clk 0:00:29]} 37. Qc5 {[%clk 0:00:14]}  Rd7 {[%clk 0:00:26]} 38. Bd4+ {[%clk 0:00:13]}  Kg8 {[%clk 0:00:26]} 39. Be3 {[%clk 0:00:13]}  Kg7 {[%clk 0:00:25]} 40. Qc4 {[%clk 0:00:13]}  Rd5 {[%clk 0:00:23]} 41. Qh4 {[%clk 0:00:13]}  Rh8 {[%clk 0:00:20]} 42. Bd4+ {[%clk 0:00:12]}  Rxd4 {[%clk 0:00:20]} 43. Qxd4+ {[%clk 0:00:12]}  Kg8 {[%clk 0:00:20]} 44. Qd8+ {[%clk 0:00:12]}  Kg7 {[%clk 0:00:20]} 45. Qd7+ {[%clk 0:00:12]}  Kh6 {[%clk 0:00:19]} 46. Qxb7 {[%clk 0:00:12]}  Re8 {[%clk 0:00:20]} 47. Qxc6 {[%clk 0:00:13]}  Re1+ {[%clk 0:00:19]} 48. Kg2 {[%clk 0:00:13]}  Re2 {[%clk 0:00:20]} 49. Qc3 {[%clk 0:00:13]}  Kh7 {[%clk 0:00:18]} 50. a4 {[%clk 0:00:13]}  a5 {[%clk 0:00:17]} 51. b4 {[%clk 0:00:14]}  axb4 {[%clk 0:00:16]} 52. Qxb4 {[%clk 0:00:14]}  f4 {[%clk 0:00:17]} 53. Qxf4 {[%clk 0:00:13]} 1-0


[Site "https://www.chess.com"]

[Event "Titled Tuesday Blitz January 31 Early 2023"]
[White "Ricaurte Lopez, Juan Carlos"]
[Black "Ingebretsen, Jens E"]
[WhiteFideId "3600327"]
[BlackFideId "1522965"]
[WhiteElo "2226"]
[BlackElo "2342"]
[Result "0-1"]
[Round "01"]
[TimeControl "180+2"]
[Date "2023.01.31"]
[WhiteClock "0:00:02"]
[BlackClock "0:00:26"]

1. e4 {[%clk 0:02:41]}  e5 {[%clk 0:02:57]} 2. d4 {[%clk 0:02:40]}  exd4 {[%clk 0:02:57]} 3. c3 {[%clk 0:02:36]}  Nc6 {[%clk 0:02:54]} 4. cxd4 {[%clk 0:02:35]}  d5 {[%clk 0:02:54]} 5. exd5 {[%clk 0:02:32]}  Qxd5 {[%clk 0:02:55]} 6. Nf3 {[%clk 0:02:31]}  Nf6 {[%clk 0:02:52]} 7. Be2 {[%clk 0:02:32]}  Bb4+ {[%clk 0:02:52]} 8. Nc3 {[%clk 0:02:30]}  O-O {[%clk 0:02:43]} 9. O-O {[%clk 0:02:27]}  Bxc3 {[%clk 0:02:24]} 10. bxc3 {[%clk 0:02:24]}  Bg4 {[%clk 0:02:20]} 11. Bf4 {[%clk 0:02:21]}  Na5 {[%clk 0:02:10]} 12. Bxc7 {[%clk 0:02:11]}  Nc4 {[%clk 0:02:05]} 13. Ne5 {[%clk 0:02:05]}  Bxe2 {[%clk 0:02:00]} 14. Qxe2 {[%clk 0:02:04]}  Rac8 {[%clk 0:01:50]} 15. Qxc4 {[%clk 0:01:57]}  Qxc4 {[%clk 0:01:50]} 16. Nxc4 {[%clk 0:01:55]}  Rxc7 {[%clk 0:01:51]} 17. Nd6 {[%clk 0:01:53]}  Rd8 {[%clk 0:01:41]} 18. Nb5 {[%clk 0:01:50]}  Rc4 {[%clk 0:01:40]} 19. Nxa7 {[%clk 0:01:34]}  Rxc3 {[%clk 0:01:25]} 20. Nb5 {[%clk 0:01:34]}  Rc6 {[%clk 0:01:14]} 21. a4 {[%clk 0:01:30]}  Ne4 {[%clk 0:01:08]} 22. Rfc1 {[%clk 0:01:26]}  g6 {[%clk 0:01:01]} 23. f3 {[%clk 0:01:26]}  Nd2 {[%clk 0:00:59]} 24. Rd1 {[%clk 0:01:10]}  Nc4 {[%clk 0:00:37]} 25. Ra2 {[%clk 0:01:01]}  Nd6 {[%clk 0:00:33]} 26. Kf2 {[%clk 0:00:59]}  Nxb5 {[%clk 0:00:31]} 27. axb5 {[%clk 0:00:59]}  Rb6 {[%clk 0:00:32]} 28. Rb2 {[%clk 0:00:52]}  Rd5 {[%clk 0:00:32]} 29. Ke3 {[%clk 0:00:49]}  Rdxb5 {[%clk 0:00:32]} 30. Rxb5 {[%clk 0:00:49]}  Rxb5 {[%clk 0:00:33]} 31. Rd2 {[%clk 0:00:46]}  Kf8 {[%clk 0:00:33]} 32. d5 {[%clk 0:00:45]}  Ke7 {[%clk 0:00:33]} 33. Kd4 {[%clk 0:00:45]}  Kd6 {[%clk 0:00:33]} 34. Rc2 {[%clk 0:00:41]}  Rxd5+ {[%clk 0:00:32]} 35. Ke4 {[%clk 0:00:40]}  Rc5 {[%clk 0:00:32]} 36. Rd2+ {[%clk 0:00:36]}  Kc7 {[%clk 0:00:32]} 37. h4 {[%clk 0:00:33]}  b5 {[%clk 0:00:31]} 38. g4 {[%clk 0:00:32]}  h6 {[%clk 0:00:29]} 39. f4 {[%clk 0:00:30]}  b4 {[%clk 0:00:29]} 40. Rb2 {[%clk 0:00:21]}  Rc4+ {[%clk 0:00:29]} 41. Ke5 {[%clk 0:00:20]}  Kc6 {[%clk 0:00:29]} 42. g5 {[%clk 0:00:18]}  hxg5 {[%clk 0:00:27]} 43. hxg5 {[%clk 0:00:19]}  Kc5 {[%clk 0:00:27]} 44. f5 {[%clk 0:00:19]}  gxf5 {[%clk 0:00:27]} 45. Kxf5 {[%clk 0:00:19]}  Rc1 {[%clk 0:00:27]} 46. Rf2 {[%clk 0:00:13]}  Kd4 {[%clk 0:00:25]} 47. Kf6 {[%clk 0:00:14]}  Rc7 {[%clk 0:00:25]} 48. Rf4+ {[%clk 0:00:11]}  Kc3 {[%clk 0:00:24]} 49. Re4 {[%clk 0:00:09]}  b3 {[%clk 0:00:23]} 50. Re7 {[%clk 0:00:09]}  Rxe7 {[%clk 0:00:23]} 51. Kxe7 {[%clk 0:00:09]}  b2 {[%clk 0:00:24]} 52. Kxf7 {[%clk 0:00:08]}  b1=Q {[%clk 0:00:25]} 53. g6 {[%clk 0:00:07]}  Qb7+ {[%clk 0:00:25]} 54. Kf6 {[%clk 0:00:06]}  Qc6+ {[%clk 0:00:25]} 55. Kf7 {[%clk 0:00:06]}  Qd7+ {[%clk 0:00:25]} 56. Kf6 {[%clk 0:00:05]}  Qd6+ {[%clk 0:00:26]} 57. Kf7 {[%clk 0:00:05]}  Qf4+ {[%clk 0:00:26]} 58. Ke7 {[%clk 0:00:03]}  Qg5+ {[%clk 0:00:26]} 59. Kf7 {[%clk 0:00:03]}  Qf5+ {[%clk 0:00:27]} 60. Kg7 {[%clk 0:00:03]}  Kd4 {[%clk 0:00:26]} 61. Kh6 {[%clk 0:00:02]}  Qh3+ {[%clk 0:00:26]} 0-1


[Site "https://www.chess.com"]

[Event "Titled Tuesday Blitz January 31 Early 2023"]
[White "Kim, Sergey"]
[Black "Michalski, Olaf"]
[WhiteFideId "13700570"]
[BlackFideId "1106740"]
[WhiteElo "2295"]
[BlackElo "2273"]
[Result "1-0"]
[Round "01"]
[TimeControl "180+2"]
[Date "2023.01.31"]
[WhiteClock "0:00:36"]
[BlackClock "0:00:01"]

1. d4 {[%clk 0:03:00]}  d6 {[%clk 0:02:59]} 2. c4 {[%clk 0:03:00]}  g6 {[%clk 0:02:59]} 3. Nc3 {[%clk 0:03:00]}  Bg7 {[%clk 0:03:00]} 4. e4 {[%clk 0:03:00]}  Nc6 {[%clk 0:03:00]} 5. Nge2 {[%clk 0:03:00]}  e5 {[%clk 0:02:59]} 6. Be3 {[%clk 0:03:00]}  f5 {[%clk 0:02:58]} 7. d5 {[%clk 0:02:58]}  Nce7 {[%clk 0:02:57]} 8. f4 {[%clk 0:02:49]}  Nf6 {[%clk 0:02:46]} 9. fxe5 {[%clk 0:02:45]}  dxe5 {[%clk 0:02:43]} 10. Qc2 {[%clk 0:02:13]}  O-O {[%clk 0:02:37]} 11. h3 {[%clk 0:02:03]}  Nxe4 {[%clk 0:02:12]} 12. Nxe4 {[%clk 0:02:03]}  fxe4 {[%clk 0:02:12]} 13. g4 {[%clk 0:02:01]}  c6 {[%clk 0:01:06]} 14. Nc3 {[%clk 0:02:00]}  cxd5 {[%clk 0:00:57]} 15. cxd5 {[%clk 0:02:00]}  Kh8 {[%clk 0:00:23]} 16. O-O-O {[%clk 0:01:59]}  Ng8 {[%clk 0:00:23]} 17. Kb1 {[%clk 0:01:37]}  Nf6 {[%clk 0:00:14]} 18. Be2 {[%clk 0:01:35]}  Qd6 {[%clk 0:00:10]} 19. Nb5 {[%clk 0:01:25]}  Qb4 {[%clk 0:00:08]} 20. a3 {[%clk 0:01:20]}  Qa5 {[%clk 0:00:07]} 21. Qc7 {[%clk 0:01:19]}  Qxc7 {[%clk 0:00:04]} 22. Nxc7 {[%clk 0:01:18]}  Rb8 {[%clk 0:00:05]} 23. Bxa7 {[%clk 0:01:18]}  Bd7 {[%clk 0:00:05]} 24. Bxb8 {[%clk 0:01:15]}  Rxb8 {[%clk 0:00:06]} 25. Bb5 {[%clk 0:01:11]}  Bxb5 {[%clk 0:00:05]} 26. Nxb5 {[%clk 0:01:10]}  e3 {[%clk 0:00:05]} 27. Rhe1 {[%clk 0:01:09]}  Bh6 {[%clk 0:00:05]} 28. d6 {[%clk 0:00:59]}  Nd7 {[%clk 0:00:05]} 29. Nc3 {[%clk 0:00:55]}  Re8 {[%clk 0:00:02]} 30. Nd5 {[%clk 0:00:55]}  Bf4 {[%clk 0:00:02]} 31. Nxe3 {[%clk 0:00:53]}  Re6 {[%clk 0:00:01]} 32. Nc4 {[%clk 0:00:51]}  g5 {[%clk 0:00:01]} 33. a4 {[%clk 0:00:49]}  e4 {[%clk 0:00:02]} 34. Ne3 {[%clk 0:00:47]}  Kg7 {[%clk 0:00:01]} 35. Nf5+ {[%clk 0:00:47]}  Kf6 {[%clk 0:00:01]} 36. b4 {[%clk 0:00:42]}  h5 {[%clk 0:00:01]} 37. a5 {[%clk 0:00:40]}  Re5 {[%clk 0:00:01]} 38. Kc2 {[%clk 0:00:37]}  Rb5 {[%clk 0:00:01]} 39. Kb3 {[%clk 0:00:36]} 1-0


[Site "https://www.chess.com"]

[Event "Titled Tuesday Blitz January 31 Early 2023"]
[White "Adithya A Chullikkad"]
[Black "Sukandar, Irine Kharisma"]
[WhiteFideId "45078734"]
[BlackFideId "7101937"]
[WhiteElo "2259"]
[BlackElo "2390"]
[Result "0-1"]
[Round "01"]
[TimeControl "180+2"]
[Date "2023.01.31"]
[WhiteClock "0:00:02"]
[BlackClock "0:00:10"]

1. d4 {[%clk 0:02:58]}  Nf6 {[%clk 0:02:59]} 2. Bf4 {[%clk 0:02:57]}  d5 {[%clk 0:02:57]} 3. e3 {[%clk 0:02:55]}  c5 {[%clk 0:02:57]} 4. c3 {[%clk 0:02:52]}  Nc6 {[%clk 0:02:54]} 5. Nd2 {[%clk 0:02:50]}  Qb6 {[%clk 0:02:47]} 6. Qb3 {[%clk 0:02:49]}  c4 {[%clk 0:02:45]} 7. Qc2 {[%clk 0:02:49]}  g6 {[%clk 0:02:43]} 8. f3 {[%clk 0:02:46]}  Bg7 {[%clk 0:02:26]} 9. e4 {[%clk 0:02:42]}  Nh5 {[%clk 0:02:15]} 10. Be3 {[%clk 0:02:23]}  e5 {[%clk 0:02:08]} 11. exd5 {[%clk 0:02:19]}  exd4 {[%clk 0:02:05]} 12. Nxc4 {[%clk 0:02:18]}  Qc5 {[%clk 0:02:02]} 13. cxd4 {[%clk 0:02:15]}  Nxd4 {[%clk 0:01:55]} 14. Qe4+ {[%clk 0:02:12]}  Kd8 {[%clk 0:01:38]} 15. O-O-O {[%clk 0:02:06]}  Bf5 {[%clk 0:01:27]} 16. Bxd4 {[%clk 0:02:04]}  Bh6+ {[%clk 0:01:19]} 17. Kb1 {[%clk 0:01:00]}  Bxe4+ {[%clk 0:01:17]} 18. fxe4 {[%clk 0:01:01]}  Qb4 {[%clk 0:01:06]} 19. Bxh8 {[%clk 0:00:57]}  Rc8 {[%clk 0:01:05]} 20. Nf3 {[%clk 0:00:46]}  Rxc4 {[%clk 0:00:46]} 21. Bxc4 {[%clk 0:00:45]}  Qxc4 {[%clk 0:00:47]} 22. Rhe1 {[%clk 0:00:43]}  Nf4 {[%clk 0:00:43]} 23. Ne5 {[%clk 0:00:30]}  Qb5 {[%clk 0:00:36]} 24. Nxf7+ {[%clk 0:00:28]}  Ke7 {[%clk 0:00:36]} 25. Nxh6 {[%clk 0:00:24]}  Nd3 {[%clk 0:00:36]} 26. Re3 {[%clk 0:00:18]}  Nb4 {[%clk 0:00:35]} 27. d6+ {[%clk 0:00:18]}  Kd7 {[%clk 0:00:34]} 28. e5 {[%clk 0:00:18]}  Ke6 {[%clk 0:00:15]} 29. d7 {[%clk 0:00:16]}  Qc4 {[%clk 0:00:15]} 30. Rc3 {[%clk 0:00:12]}  Qxa2+ {[%clk 0:00:15]} 31. Kc1 {[%clk 0:00:12]}  Qa1+ {[%clk 0:00:14]} 32. Kd2 {[%clk 0:00:12]}  Qxb2+ {[%clk 0:00:15]} 33. Ke3 {[%clk 0:00:06]}  Qxc3+ {[%clk 0:00:15]} 34. Kf2 {[%clk 0:00:04]}  Qc2+ {[%clk 0:00:16]} 35. Ke1 {[%clk 0:00:04]}  Nd3+ {[%clk 0:00:15]} 36. Rxd3 {[%clk 0:00:04]}  Qxd3 {[%clk 0:00:15]} 37. Ng4 {[%clk 0:00:02]}  Qxd7 {[%clk 0:00:13]} 38. Nf6 {[%clk 0:00:02]}  Qd3 {[%clk 0:00:11]} 39. Ne8 {[%clk 0:00:02]}  a5 {[%clk 0:00:10]} 40. Nc7+ {[%clk 0:00:02]}  Kd7 {[%clk 0:00:10]} 0-1


[Site "https://www.chess.com"]

[Event "Titled Tuesday Blitz January 31 Early 2023"]
[White "Delorme, Alban"]
[Black "TheKnightOfBosnia"]
[WhiteFideId "623636"]
[WhiteElo "2298"]
[BlackElo "2546"]
[Result "1-0"]
[Round "01"]
[TimeControl "180+2"]
[Date "2023.01.31"]
[WhiteClock "0:00:06"]
[BlackClock "0:00:13"]

1. e4 {[%clk 0:03:00]}  e5 {[%clk 0:02:59]} 2. Nf3 {[%clk 0:03:00]}  Nc6 {[%clk 0:02:59]} 3. Bc4 {[%clk 0:03:00]}  Nf6 {[%clk 0:02:59]} 4. d4 {[%clk 0:03:00]}  exd4 {[%clk 0:02:58]} 5. e5 {[%clk 0:03:01]}  d5 {[%clk 0:02:58]} 6. Bb5 {[%clk 0:03:02]}  Nd7 {[%clk 0:02:58]} 7. O-O {[%clk 0:02:58]}  Be7 {[%clk 0:02:57]} 8. Re1 {[%clk 0:02:54]}  O-O {[%clk 0:02:56]} 9. Bxc6 {[%clk 0:02:50]}  bxc6 {[%clk 0:02:56]} 10. Nxd4 {[%clk 0:02:50]}  Nb8 {[%clk 0:02:57]} 11. c3 {[%clk 0:02:39]}  a5 {[%clk 0:02:54]} 12. Be3 {[%clk 0:02:38]}  Ra6 {[%clk 0:02:51]} 13. Nd2 {[%clk 0:02:29]}  c5 {[%clk 0:02:44]} 14. N4b3 {[%clk 0:02:28]}  Nd7 {[%clk 0:02:44]} 15. Nf3 {[%clk 0:02:16]}  a4 {[%clk 0:02:41]} 16. Nc1 {[%clk 0:02:06]}  Bb7 {[%clk 0:02:40]} 17. Ne2 {[%clk 0:01:59]}  Rg6 {[%clk 0:02:30]} 18. Nf4 {[%clk 0:01:58]}  d4 {[%clk 0:02:11]} 19. cxd4 {[%clk 0:01:46]}  Bxf3 {[%clk 0:02:02]} 20. Qxf3 {[%clk 0:01:45]}  Rb6 {[%clk 0:02:01]} 21. dxc5 {[%clk 0:01:33]}  Bxc5 {[%clk 0:01:53]} 22. Rad1 {[%clk 0:01:24]}  Qc8 {[%clk 0:01:45]} 23. Nd5 {[%clk 0:01:13]}  Re6 {[%clk 0:01:37]} 24. Qg3 {[%clk 0:00:52]}  Qb7 {[%clk 0:01:19]} 25. Nf4 {[%clk 0:00:45]}  Rxe5 {[%clk 0:01:10]} 26. Rxd7 {[%clk 0:00:41]}  Qxb2 {[%clk 0:01:02]} 27. Rd2 {[%clk 0:00:28]}  Qc3 {[%clk 0:00:58]} 28. Red1 {[%clk 0:00:19]}  Bxe3 {[%clk 0:00:56]} 29. fxe3 {[%clk 0:00:19]}  Rxe3 {[%clk 0:00:55]} 30. Qf2 {[%clk 0:00:19]}  Ree8 {[%clk 0:00:51]} 31. h3 {[%clk 0:00:18]}  Rb8 {[%clk 0:00:45]} 32. Rd3 {[%clk 0:00:18]}  Qe5 {[%clk 0:00:44]} 33. Nd5 {[%clk 0:00:18]}  c6 {[%clk 0:00:41]} 34. Ne3 {[%clk 0:00:15]}  c5 {[%clk 0:00:35]} 35. Ng4 {[%clk 0:00:14]}  Qe6 {[%clk 0:00:33]} 36. Qxc5 {[%clk 0:00:14]}  Rb2 {[%clk 0:00:31]} 37. Rd8 {[%clk 0:00:07]}  h5 {[%clk 0:00:13]} 38. Qxf8+ {[%clk 0:00:06]}  Kh7 {[%clk 0:00:13]} 39. Qh8+ {[%clk 0:00:04]}  Kg6 {[%clk 0:00:13]} 40. R8d6 {[%clk 0:00:04]}  hxg4 {[%clk 0:00:13]} 41. Rxe6+ {[%clk 0:00:04]}  fxe6 {[%clk 0:00:13]} 42. hxg4 {[%clk 0:00:04]}  Rxa2 {[%clk 0:00:13]} 43. Qh5+ {[%clk 0:00:05]}  Kf6 {[%clk 0:00:13]} 44. Rf1+ {[%clk 0:00:06]}  Ke7 {[%clk 0:00:14]} 45. Qf7+ {[%clk 0:00:07]}  Kd6 {[%clk 0:00:14]} 46. Rd1+ {[%clk 0:00:07]}  Ke5 {[%clk 0:00:14]} 47. Re1+ {[%clk 0:00:07]}  Kd4 {[%clk 0:00:15]} 48. Qf4+ {[%clk 0:00:06]}  Kc3 {[%clk 0:00:14]} 49. Re3+ {[%clk 0:00:05]}  Kd2 {[%clk 0:00:12]} 50. Qf2+ {[%clk 0:00:05]}  Kd1 {[%clk 0:00:13]} 51. Re1# {[%clk 0:00:06]} 1-0


[Site "https://www.chess.com"]

[Event "Titled Tuesday Blitz January 31 Early 2023"]
[White "Maltsevskaya, Aleksandra"]
[Black "Vidruska, Renate"]
[WhiteFideId "24174041"]
[BlackFideId "11601841"]
[WhiteElo "2390"]
[BlackElo "1991"]
[Result "1-0"]
[Round "01"]
[TimeControl "180+2"]
[Date "2023.01.31"]
[WhiteClock "0:01:53"]
[BlackClock "0:01:40"]

1. Nf3 {[%clk 0:02:59]}  d5 {[%clk 0:02:56]} 2. d4 {[%clk 0:02:56]}  c6 {[%clk 0:02:55]} 3. c4 {[%clk 0:02:56]}  e6 {[%clk 0:02:54]} 4. Nc3 {[%clk 0:02:56]}  Nf6 {[%clk 0:02:49]} 5. Bg5 {[%clk 0:02:55]}  Be7 {[%clk 0:02:38]} 6. Bxf6 {[%clk 0:02:54]}  Bxf6 {[%clk 0:02:37]} 7. e4 {[%clk 0:02:54]}  dxe4 {[%clk 0:02:35]} 8. Nxe4 {[%clk 0:02:55]}  O-O {[%clk 0:02:35]} 9. Be2 {[%clk 0:02:40]}  Nd7 {[%clk 0:02:23]} 10. O-O {[%clk 0:02:40]}  Be7 {[%clk 0:02:23]} 11. Bd3 {[%clk 0:02:34]}  h6 {[%clk 0:02:20]} 12. Qe2 {[%clk 0:02:32]}  Re8 {[%clk 0:02:19]} 13. Rad1 {[%clk 0:02:29]}  Bf6 {[%clk 0:02:19]} 14. Nd6 {[%clk 0:02:16]}  Re7 {[%clk 0:02:16]} 15. Qe4 {[%clk 0:02:14]}  Nf8 {[%clk 0:02:17]} 16. c5 {[%clk 0:02:10]}  Qc7 {[%clk 0:02:06]} 17. Ne5 {[%clk 0:02:10]}  b6 {[%clk 0:01:56]} 18. Nxc6 {[%clk 0:02:09]}  Rd7 {[%clk 0:01:49]} 19. Ne5 {[%clk 0:01:55]}  Bxe5 {[%clk 0:01:42]} 20. Qxa8 {[%clk 0:01:53]}  Bxd6 {[%clk 0:01:41]} 21. cxd6 {[%clk 0:01:53]}  Rxd6 {[%clk 0:01:40]} 22. Rc1 {[%clk 0:01:53]} 1-0


[Site "https://www.chess.com"]

[Event "Titled Tuesday Blitz January 31 Early 2023"]
[White "Lewtak, Damian"]
[Black "Bongo Akanga Ndjila, Barthelemy"]
[WhiteFideId "1141724"]
[BlackFideId "10609431"]
[WhiteElo "2381"]
[BlackElo "1824"]
[Result "1-0"]
[Round "01"]
[TimeControl "180+2"]
[Date "2023.01.31"]
[WhiteClock "0:02:45"]
[BlackClock "0:02:01"]

1. e4 {[%clk 0:03:00]}  e6 {[%clk 0:02:58]} 2. Nf3 {[%clk 0:03:00]}  d5 {[%clk 0:02:58]} 3. exd5 {[%clk 0:03:01]}  exd5 {[%clk 0:02:57]} 4. d4 {[%clk 0:03:02]}  Nf6 {[%clk 0:02:55]} 5. c4 {[%clk 0:03:02]}  Be7 {[%clk 0:02:53]} 6. Nc3 {[%clk 0:03:02]}  O-O {[%clk 0:02:52]} 7. h3 {[%clk 0:03:02]}  c6 {[%clk 0:02:46]} 8. Be3 {[%clk 0:03:01]}  Re8 {[%clk 0:02:45]} 9. Qb3 {[%clk 0:03:01]}  h6 {[%clk 0:02:22]} 10. Be2 {[%clk 0:02:59]}  dxc4 {[%clk 0:02:21]} 11. Bxc4 {[%clk 0:02:59]}  Rf8 {[%clk 0:02:18]} 12. Ne5 {[%clk 0:02:59]}  Nbd7 {[%clk 0:02:17]} 13. Bxf7+ {[%clk 0:02:47]}  Kh7 {[%clk 0:02:15]} 14. Qc2+ {[%clk 0:02:46]}  Kh8 {[%clk 0:02:01]} 15. Ng6+ {[%clk 0:02:45]} 1-0


[Site "https://www.chess.com"]